fUSD/lending_fUSD_20240201
["ID","MTS","AMOUNT","RATE_DAILY","PERIOD"]
[313123487,1706776244789,-500.0,0.0002904,2]
[313123488,1706776244799,-525.3,0.0002904,2]
[313123489,1706776244808,-500.0,0.0002904,2]
[313123490,1706776244817,-2833.86,0.0002904,2]
[313123491,1706776244827,-805.55,0.0002904,2]
[313123492,1706776244837,-372.20653449,0.0002904,2]
[313123493,1706776244846,-650.37,0.0002904,2]
[313123494,1706776244856,-500.0,0.0002904,2]
[313123495,1706776244865,-171.64985738,0.0002904,2]
[313123496,1706776244875,-795.82,0.0002904,2]
[313123497,1706776244884,-500.0,0.0002904,10]
[313123498,1706776244898,-500.0,0.0002904,2]
[313123499,1706776244907,-500.0,0.0002904,2]
[313123500,1706776244916,-500.0,0.0002904,2]
[313123501,1706776244926,-2185.73,0.0002904,2]
[313123502,1706776244936,-877.7,0.0002904,2]
[313123503,1706776244947,-3529.95,0.0002904,2]
[313123504,1706776244956,-500.0,0.0002904,2]
[313123505,1706776244966,-500.0,0.0002904,2]
[313123506,1706776244976,-500.0,0.0002904,2]
[313123507,1706776244985,-500.0,0.0002904,2]
[313123508,1706776244995,-565.02,0.0002904,2]
[313123509,1706776245005,-500.0,0.0002904,2]
[313123510,1706776245015,-500.0,0.0002904,2]
[313123511,1706776245024,-500.0,0.0002904,2]
[313123512,1706776245034,-500.0,0.0002904,2]
[313123513,1706776245044,-500.0,0.0002904,2]
[313123514,1706776245054,-500.0,0.0002904,2]
[313123515,1706776245063,-500.0,0.0002904,2]
[313123516,1706776245073,-500.0,0.0002904,2]
[313123517,1706776245083,-533.83,0.0002904,2]
[313123518,1706776245095,-500.0,0.0002904,2]
[313123519,1706776245105,-1121.98,0.0002904,2]
[313123520,1706776245114,-979.59,0.0002904,2]
[313123521,1706776245124,-746.33,0.0002904,2]
[313123522,1706776245134,-500.0,0.0002904,2]
[313123523,1706776245143,-500.0,0.0002904,2]
[313123524,1706776245152,-500.0,0.0002904,2]
[313123525,1706776245162,-943.09,0.0002904,2]
[313123526,1706776245171,-580.6,0.0002904,2]
[313123527,1706776245181,-500.0,0.0002904,2]
[313123528,1706776245191,-683.65,0.0002904,2]
[313123529,1706776245201,-2240.85,0.0002904,2]
[313123530,1706776245211,-500.0,0.0002904,2]
[313123531,1706776245220,-500.0,0.0002904,2]
[313123532,1706776245234,-561.05,0.0002904,2]
[313123533,1706776245243,-500.0,0.0002904,2]
[313123534,1706776245253,-500.0,0.0002904,2]
[313123535,1706776245263,-534.33,0.0002904,2]
[313123536,1706776245272,-500.0,0.0002904,2]
[313123537,1706776245282,-500.0,0.0002904,2]
[313123538,1706776245292,-500.0,0.0002904,2]
[313123539,1706776245301,-500.0,0.0002904,2]
[313123540,1706776245398,-703.19,0.0002904,2]
[313123541,1706776245408,-2262.54,0.0002904,2]
[313123542,1706776245417,-500.0,0.0002904,2]
[313123543,1706776245427,-500.0,0.0002904,2]
[313123544,1706776245435,-1389.74,0.0002904,2]
[313123545,1706776245445,-1318.75,0.0002904,2]
[313123546,1706776245454,-536.98,0.0002904,2]
[313123547,1706776245463,-500.0,0.0002904,2]
[313123548,1706776245472,-500.0,0.0002904,2]
[313123549,1706776245481,-500.0,0.0002904,2]
[313123550,1706776245490,-500.0,0.0002904,2]
[313123551,1706776245500,-820.4,0.0002904,2]
[313123552,1706776245512,-500.0,0.0002904,2]
[313123553,1706776245521,-593.65,0.0002904,2]
[313123554,1706776245531,-500.0,0.0002904,2]
[313123555,1706776245540,-986.81,0.0002904,2]
[313123556,1706776245550,-13265.45,0.0002904,2]
[313123557,1706776245559,-537.56,0.0002904,2]
[313123558,1706776245569,-500.0,0.0002904,2]
[313123559,1706776245578,-697.24,0.0002904,2]
[313123560,1706776245588,-500.0,0.0002904,2]
[313123561,1706776245598,-500.0,0.0002904,2]
[313123562,1706776245607,-558.76,0.0002904,2]
[313123563,1706776245616,-500.0,0.0002904,2]
[313123564,1706776245625,-500.0,0.0002904,2]
[313123565,1706776245634,-1029.82,0.0002904,2]
[313123566,1706776245643,-1920.23,0.0002904,5]
[313123567,1706776245653,-575.03,0.0002904,2]
[313123568,1706776245662,-505.1,0.0002904,2]
[313123569,1706776245672,-791.45,0.0002904,2]
[313123570,1706776245682,-1916.54,0.0002904,2]
[313123571,1706776245691,-500.0,0.0002904,2]
[313123572,1706776245701,-1836.81,0.0002904,2]
[313123573,1706776245711,-500.0,0.0002904,2]
[313123574,1706776245720,-620.15,0.0002904,2]
[313123575,1706776245729,-693.63,0.0002904,2]
[313123576,1706776245738,-559.37,0.0002904,2]
[313123577,1706776245747,-500.0,0.0002904,2]
[313123578,1706776245756,-66.3781018,0.0002904,2]
[313123579,1706776246054,-433.6218982,0.0002904,2]
[313123580,1706776246064,-883.0,0.0002904,2]
[313123581,1706776246073,-500.0,0.0002904,2]
[313123582,1706776246082,-3486.85,0.0002904,2]
[313123583,1706776246091,-500.0,0.0002904,2]
[313123584,1706776246100,-500.0,0.0002904,2]
[313123585,1706776246109,-566.87,0.0002904,2]
[313123586,1706776246118,-547.71,0.0002904,2]
[313123587,1706776246127,-500.0,0.0002904,2]
[313123588,1706776246137,-500.0,0.0002904,2]
[313123589,1706776246146,-500.0,0.0002904,2]
[313123590,1706776246156,-500.0,0.0002904,2]
[313123591,1706776246164,-507.87,0.0002904,2]
[313123592,1706776246174,-500.0,0.0002904,2]
[313123593,1706776246183,-615.55,0.0002904,2]
[313123594,1706776246192,-718.26,0.0002904,2]
[313123595,1706776246202,-518.77,0.0002904,2]
[313123596,1706776246212,-1054.71,0.0002904,2]
[313123597,1706776246221,-500.0,0.0002904,2]
[313123598,1706776246230,-1029.49,0.0002904,5]
[313123599,1706776246239,-644.72,0.0002904,2]
[313123600,1706776246248,-965.93,0.0002904,2]
[313123602,1706776246257,-1061.07,0.0002904,2]
[313123603,1706776246266,-500.0,0.0002904,2]
[313123604,1706776246275,-500.0,0.0002904,2]
[313123605,1706776246284,-947.33,0.0002904,2]
[313123606,1706776246292,-570.31,0.0002904,2]
[313123607,1706776246301,-500.0,0.0002904,2]
[313123608,1706776246310,-500.0,0.0002904,2]
[313123609,1706776246320,-1249.86,0.0002904,2]
[313123610,1706776246329,-681.98,0.0002904,2]
[313123611,1706776246340,-500.0,0.0002904,2]
[313123612,1706776246350,-1139.48,0.0002904,2]
[313123613,1706776246360,-615.67,0.0002904,2]
[313123614,1706776246370,-500.0,0.0002904,2]
[313123615,1706776246380,-1225.12,0.0002904,2]
[313123616,1706776246389,-784.0,0.0002904,2]
[313123617,1706776246399,-500.0,0.00029041,2]
[313123618,1706776246408,-1412.88,0.00029041,2]
[313123619,1706776246418,-500.0,0.00029041,2]
[313123620,1706776246427,-500.0,0.00029041,2]
[313123621,1706776246436,-500.0,0.00029041,2]
[313123622,1706776246445,-500.0,0.00029041,2]
[313123623,1706776246458,-500.0,0.00029041,2]
[313123624,1706776246468,-1390.97,0.00029041,2]
[313123625,1706776246477,-499.94,0.00029568,2]
[313123626,1706776246487,-2194.22,0.00029587,2]
[313123627,1706776246496,-886.82,0.00029587,2]
[313123628,1706776246507,-500.0,0.00029587,2]
[313123629,1706776246517,-500.0,0.00029587,2]
[313123630,1706776246526,-500.0,0.00029587,2]
[313123631,1706776246536,-565.48,0.00029587,2]
[313123632,1706776246545,-500.0,0.00029587,2]
[313123633,1706776246555,-500.0,0.00029587,2]
[313123634,1706776246564,-863.31,0.00029587,2]
[313123635,1706776246573,-500.0,0.00029587,2]
[313123636,1706776246583,-500.0,0.00029587,2]
[313123637,1706776246592,-980.46,0.00029587,2]
[313123638,1706776246602,-500.0,0.00029587,2]
[313123639,1706776246611,-1264.53,0.00029587,2]
[313123640,1706776246620,-568.89,0.00029587,2]
[313123641,1706776246629,-500.0,0.00029587,2]
[313123642,1706776246638,-1241.73,0.00029587,2]
[313123643,1706776246648,-584.81,0.00029587,2]
[313123644,1706776246658,-500.0,0.00029587,2]
[313123645,1706776246667,-500.0,0.00029587,2]
[313123646,1706776246676,-511.79,0.00029587,2]
[313123647,1706776246685,-698.86,0.00029588,2]
[313123648,1706776246694,-500.0,0.00029588,2]
[313123649,1706776246704,-670.72,0.00029588,2]
[313123650,1706776246712,-500.0,0.00029588,2]
[313123651,1706776246721,-500.0,0.00029588,2]
[313123652,1706776246730,-500.0,0.00029588,2]
[313123653,1706776246740,-548.23,0.00029588,2]
[313123654,1706776246749,-786.86,0.00029588,7]
[313123655,1706776246758,-500.0,0.00029588,2]
[313123656,1706776246767,-500.0,0.00029588,2]
[313123657,1706776246777,-500.0,0.00029588,2]
[313123658,1706776246785,-498.85285301,0.00029588,2]
[313123659,1706776246795,-500.0,0.00029588,2]
[313123660,1706776246804,-500.0,0.00029588,2]
[313123661,1706776246813,-500.0,0.00029588,2]
[313123662,1706776246822,-500.0,0.00029588,2]
[313123663,1706776246832,-500.0,0.00029588,2]
[313123664,1706776246842,-500.0,0.00029588,2]
[313123665,1706776246851,-500.0,0.00029588,2]
[313123666,1706776246860,-500.0,0.00029588,2]
[313123667,1706776246869,-500.0,0.00029588,2]
[313123668,1706776246878,-500.0,0.00029588,2]
[313123669,1706776246887,-500.0,0.00029588,2]
[313123670,1706776246897,-1000.0,0.00029588,7]
[313123671,1706776246907,-500.0,0.00029588,2]
[313123672,1706776246916,-500.0,0.00029588,2]
[313123673,1706776246925,-1002.81,0.00029588,2]
[313123674,1706776246934,-500.0,0.00029588,2]
[313123675,1706776246944,-525.3,0.00029588,2]
[313123676,1706776246953,-500.0,0.00029588,2]
[313123677,1706776246962,-2833.86,0.00029588,2]
[313123678,1706776246971,-805.55,0.00029588,2]
[313123679,1706776246981,-650.37,0.00029588,2]
[313123680,1706776246990,-500.0,0.00029588,2]
[313123681,1706776246999,-795.82,0.00029588,2]
[313123682,1706776247009,-500.0,0.00029588,10]
[313123683,1706776247018,-500.0,0.00029588,2]
[313123684,1706776247027,-500.0,0.00029588,2]
[313123685,1706776247036,-500.0,0.00029588,2]
[313123686,1706776247044,-2185.73,0.00029588,2]
[313123687,1706776247054,-877.7,0.00029588,2]
[313123688,1706776247063,-3529.95,0.00029588,2]
[313123689,1706776247072,-500.0,0.00029588,2]
[313123690,1706776247081,-500.0,0.00029588,2]
[313123691,1706776247091,-257.7297203,0.00029588,2]
[313123692,1706776247100,-500.0,0.00029588,2]
[313123693,1706776247109,-565.02,0.00029588,2]
[313123694,1706776247118,-500.0,0.00029588,2]
[313123695,1706776247127,-500.0,0.00029588,2]
[313123696,1706776247136,-500.0,0.00029588,2]
[313123697,1706776247146,-500.0,0.00029588,2]
[313123698,1706776247155,-500.0,0.00029588,2]
[313123699,1706776247165,-500.0,0.00029588,2]
[313123700,1706776247174,-500.0,0.00029588,2]
[313123701,1706776247184,-500.0,0.00029588,2]
[313123702,1706776247194,-533.83,0.00029588,2]
[313123703,1706776247204,-500.0,0.00029588,2]
[313123704,1706776247213,-1121.98,0.00029588,2]
[313123705,1706776247223,-979.59,0.00029588,2]
[313123706,1706776247232,-746.33,0.00029588,2]
[313123707,1706776247242,-500.0,0.00029588,2]
[313123708,1706776247252,-500.0,0.00029588,2]
[313123709,1706776247261,-500.0,0.00029588,2]
[313123710,1706776247271,-943.09,0.00029588,2]
[313123711,1706776247280,-580.6,0.00029588,2]
[313123712,1706776247290,-500.0,0.00029588,2]
[313123713,1706776247300,-683.65,0.00029588,2]
[313123714,1706776247309,-2240.85,0.00029588,2]
[313123715,1706776247318,-500.0,0.00029588,2]
[313123716,1706776247328,-500.0,0.00029588,2]
[313123717,1706776247338,-561.05,0.00029588,2]
[313123718,1706776247347,-500.0,0.00029588,2]
[313123719,1706776247357,-500.0,0.00029588,2]
[313123720,1706776247367,-534.33,0.00029588,2]
[313123721,1706776247376,-500.0,0.00029588,2]
[313123722,1706776247386,-500.0,0.00029588,2]
[313123723,1706776247396,-500.0,0.00029588,2]
[313123724,1706776247405,-500.0,0.00029588,2]
[313123725,1706776247415,-703.19,0.00029588,2]
[313123726,1706776247424,-1861.07300614,0.00029588,2]
[313123727,1706776247439,-299.57396,0.00029588,2]
[313123728,1706776247451,-101.89303386,0.00029588,2]
[313123729,1706776247461,-244.27763335,0.00029588,2]
[313123730,1706776247473,-255.72236665,0.00029588,2]
[313123731,1706776247482,-52.46523339,0.00029588,2]
[313123732,1706776247494,-447.53476661,0.00029588,2]
[313123733,1706776247505,-1389.74,0.00029588,2]
[313123734,1706776247518,-1318.75,0.00029588,2]
[313123735,1706776247527,-536.98,0.00029588,2]
[313123736,1706776247537,-500.0,0.00029588,2]
[313123737,1706776247546,-51.60993356,0.00029588,2]
[313123738,1706776247558,-448.39006644,0.00029588,2]
[313123739,1706776247568,-198.27979962,0.00029588,2]
[313123740,1706776247579,-301.72020038,0.00029588,2]
[313123741,1706776247590,-820.4,0.00029588,2]
[313123742,1706776247600,-593.65,0.00029588,2]
[313123743,1706776247609,-427.18345166,0.00029588,2]
[313123744,1706776247621,-72.81654834,0.00029588,2]
[313123745,1706776247630,-500.0,0.00029588,2]
[313123746,1706776247639,-986.81,0.00029588,2]
[313123747,1706776247649,-1167.84721211,0.00029588,2]
[313123748,1706776247660,-12097.60278789,0.00029588,2]
[313123749,1706776247670,-537.56,0.00029588,2]
[313123750,1706776247680,-500.0,0.00029588,2]
[313123751,1706776247689,-697.24,0.00029588,2]
[313123752,1706776247699,-500.0,0.00029588,2]
[313123753,1706776247708,-444.85017999,0.00029588,2]
[313123754,1706776247758,-0.05084605,0.00029588,2]
[313123755,1706776247952,-55.09897396,0.00029588,2]
[313123756,1706776247962,-558.76,0.00029588,2]
[313123757,1706776247971,-500.0,0.00029588,2]
[313123758,1706776247981,-500.0,0.00029588,2]
[313123759,1706776247991,-1029.82,0.00029588,2]
[313123760,1706776248001,-1920.23,0.00029588,5]
[313123761,1706776248010,-575.03,0.00029588,2]
[313123762,1706776248020,-505.1,0.00029588,2]
[313123763,1706776248029,-791.45,0.00029588,2]
[313123764,1706776248039,-1916.54,0.00029588,2]
[313123765,1706776248048,-500.0,0.00029588,2]
[313123766,1706776248058,-1836.81,0.00029588,2]
[313123767,1706776248067,-620.15,0.00029588,2]
[313123768,1706776248077,-500.0,0.00029588,2]
[313123769,1706776248086,-516.42056085,0.00029588,2]
[313123770,1706776248099,-42.94943915,0.00029588,2]
[313123771,1706776248108,-693.63,0.00029588,2]
[313123772,1706776248119,-500.0,0.00029588,2]
[313123773,1706776248128,-500.0,0.00029588,2]
[313123774,1706776248138,-883.0,0.00029588,2]
[313123775,1706776248147,-500.0,0.00029588,2]
[313123776,1706776248157,-3486.85,0.00029588,2]
[313123777,1706776248167,-454.5664626,0.00029588,2]
[313123778,1706776248179,-45.4335374,0.00029588,2]
[313123779,1706776248190,-566.87,0.00029588,2]
[313123780,1706776248200,-547.71,0.00029588,2]
[313123781,1706776248210,-500.0,0.00029588,2]
[313123782,1706776248220,-500.0,0.00029588,2]
[313123783,1706776248229,-500.0,0.00029588,2]
[313123784,1706776248239,-500.0,0.00029588,2]
[313123785,1706776248249,-507.87,0.00029588,2]
[313123786,1706776248259,-263.03096022,0.00029588,2]
[313123787,1706776248269,-615.55,0.00029588,2]
[313123788,1706776248278,-718.26,0.00029588,2]
[313123789,1706776248288,-518.77,0.00029588,2]
[313123790,1706776248298,-1054.71,0.00029588,2]
[313123791,1706776248308,-500.0,0.00029588,2]
[313123792,1706776248318,-1029.49,0.00029588,5]
[313123793,1706776248327,-644.72,0.00029588,2]
[313123794,1706776248337,-965.93,0.00029588,2]
[313123795,1706776248346,-532.63620234,0.00029588,2]
[313123796,1706776248359,-528.43379766,0.00029588,2]
[313123797,1706776248369,-500.0,0.00029588,2]
[313123798,1706776248379,-500.0,0.00029588,2]
[313123799,1706776248388,-947.33,0.00029588,2]
[313123800,1706776248398,-570.31,0.00029588,2]
[313123801,1706776248408,-500.0,0.00029588,2]
[313123802,1706776248418,-500.0,0.00029588,2]
[313123803,1706776248427,-1249.86,0.00029588,2]
[313123804,1706776248437,-531.91214308,0.00029588,2]
[313123805,1706776248450,-150.06785692,0.00029588,2]
[313123806,1706776248460,-500.0,0.00029588,2]
[313123807,1706776248469,-1139.48,0.00029588,2]
[313123808,1706776248478,-615.67,0.00029588,2]
[313123809,1706776248487,-500.0,0.00029588,2]
[313123810,1706776248497,-1225.12,0.00029588,2]
[313123811,1706776248507,-784.0,0.00029588,2]
[313123812,1706776248518,-500.0,0.00029589,2]
[313123813,1706776248527,-1412.88,0.00029589,2]
[313123814,1706776248537,-500.0,0.00029589,2]
[313123815,1706776248547,-500.0,0.00029589,2]
[313123816,1706776248557,-500.0,0.00029589,2]
[313123817,1706776248567,-500.0,0.00029589,2]
[313123818,1706776248576,-500.0,0.00029589,2]
[313123819,1706776248586,-1390.97,0.00029589,2]
[313123820,1706776248595,-1393.9763937,0.00029645,2]
[313123821,1706776248605,-718.76270194,0.00029736,4]
[313123822,1706776248614,-1000.0,0.00029768,2]
[313123823,1706776248624,-10000.0,0.0002978,2]
[313123824,1706776248633,-265.75241527,0.00029898,2]
[313123825,1706776248643,-1647.27407841,0.00029899,2]
[313123826,1706776248652,-4875.9155192,0.000299,2]
[313123827,1706776248664,-265.36254297,0.000299,2]
[313123828,1706776248712,-863.99423,0.000299,2]
[313123829,1706776248723,-3032.91095201,0.000299,2]
[313123830,1706776248735,-5123.01460301,0.000299,2]
[313123831,1706776248751,-2271.65,0.000299,2]
[313123832,1706776248763,-380.0000097,0.000299,2]
[313123833,1706776248775,-316.63728519,0.000299,2]
[313123834,1706776248785,-428.77823293,0.000299,2]
[313123835,1706776248811,-1490.56288128,0.000299,2]
[313123836,1706776249155,-337.97,0.00029029,10]
[313123837,1706776249166,-80.65888579,0.000299,2]
[313123838,1706776249176,-140.69782913,0.000299,2]
[313123839,1706776249188,-59.30217087,0.000299,2]
[313123840,1706776249198,-591.72647706,0.000299,10]
[313123841,1706776249209,-8.27352294,0.000299,10]
[313123842,1706776249219,-312.61532307,0.0003,2]
[313123843,1706776249229,-84.07155985,0.0003,2]
[313123844,1706776249241,-165.92844015,0.0003,2]
[313123845,1706776249250,-98.27955985,0.0003,2]
[313123846,1706776249262,-401.72044015,0.0003,2]
[313123847,1706776249271,-155.0,0.0003,2]
[313123848,1706776249281,-176.8,0.0003,2]
[313123849,1706776249290,-244.80907079,0.0003,2]
[313123850,1706776249305,-936.27031957,0.0003,2]
[313123851,1706776249317,-1818.92060964,0.0003,2]
[313123852,1706776249327,-171.58,0.00030106,2]
[313123853,1706776249336,-540.14222714,0.00030135,2]
[313123854,1706776249361,-346.67777286,0.00030135,2]
[313123855,1706776249370,-500.0,0.00030135,2]
[313123856,1706776249381,-500.0,0.00030135,2]
[313123857,1706776249580,-500.0,0.00030135,2]
[313123858,1706776249591,-565.48,0.00030135,2]
[313123859,1706776249601,-500.0,0.00030135,2]
[313123860,1706776249610,-500.0,0.00030135,2]
[313123861,1706776249619,-863.31,0.00030135,2]
[313123862,1706776249629,-500.0,0.00030135,2]
[313123863,1706776249638,-500.0,0.00030135,2]
[313123864,1706776249647,-980.46,0.00030135,2]
[313123865,1706776249656,-500.0,0.00030135,2]
[313123866,1706776249666,-1264.53,0.00030135,2]
[313123867,1706776249676,-568.89,0.00030135,2]
[313123868,1706776249684,-500.0,0.00030135,2]
[313123869,1706776249694,-1241.73,0.00030135,2]
[313123870,1706776249703,-584.81,0.00030135,2]
[313123871,1706776249712,-500.0,0.00030135,2]
[313123872,1706776249720,-500.0,0.00030135,2]
[313123873,1706776249730,-511.79,0.00030135,2]
[313123874,1706776249739,-500.0,0.00030136,2]
[313123875,1706776249748,-1412.88,0.00030136,2]
[313123876,1706776249757,-698.86,0.00030136,2]
[313123877,1706776249766,-500.0,0.00030136,2]
[313123878,1706776249775,-500.0,0.00030136,2]
[313123879,1706776249784,-642.00100271,0.00030136,2]
[313123880,1706776249796,-28.71899729,0.00030136,2]
[313123881,1706776249805,-500.0,0.00030136,2]
[313123882,1706776249814,-518.19538639,0.00030136,2]
[313123883,1706776249823,-245.10370524,0.00030136,2]
[313123884,1706776249831,-500.0,0.00030136,2]
[313123885,1706776249841,-500.0,0.00030136,2]
[313123886,1706776249850,-500.0,0.00030136,2]
[313123887,1706776249859,-1390.97,0.00030136,2]
[313123888,1706776249868,-548.23,0.00030136,2]
[313123889,1706776249877,-786.86,0.00030136,7]
[313123890,1706776249886,-500.0,0.00030136,2]
[313123891,1706776249895,-493.47026978,0.00030136,2]
[313123892,1706776249904,-500.0,0.00030136,2]
[313123893,1706776249913,-500.0,0.00030136,2]
[313123894,1706776249923,-500.0,0.00030136,2]
[313123895,1706776249932,-500.0,0.00030136,2]
[313123896,1706776249941,-500.0,0.00030136,2]
[313123897,1706776249951,-500.0,0.00030136,2]
[313123898,1706776249960,-500.0,0.00030136,2]
[313123899,1706776249969,-500.0,0.00030136,2]
[313123900,1706776249978,-500.0,0.00030136,2]
[313123901,1706776249987,-500.0,0.00030136,2]
[313123902,1706776249995,-500.0,0.00030136,2]
[313123903,1706776250005,-1000.0,0.00030136,7]
[313123904,1706776250014,-499.36634962,0.00030136,2]
[313123905,1706776250023,-500.0,0.00030136,2]
[313123906,1706776250032,-1002.81,0.00030136,2]
[313123907,1706776250042,-500.0,0.00030136,2]
[313123908,1706776250051,-525.3,0.00030136,2]
[313123909,1706776250061,-400.06568226,0.00030136,2]
[313123910,1706776250070,-805.55,0.00030136,2]
[313123911,1706776250080,-650.37,0.00030136,2]
[313123912,1706776250089,-493.70030386,0.00030136,2]
[313123913,1706776250098,-795.82,0.00030136,2]
[313123914,1706776250108,-359.65890522,0.00030136,10]
[313123915,1706776250117,-500.0,0.00030136,2]
[313123916,1706776250127,-158.01273601,0.00030136,2]
[313123917,1706776250136,-500.0,0.00030136,2]
[313123918,1706776250146,-2185.73,0.00030136,2]
[313123919,1706776250156,-877.7,0.00030136,2]
[313123920,1706776250165,-3529.95,0.00030136,2]
[313123921,1706776250176,-500.0,0.00030136,2]
[313123922,1706776250186,-500.0,0.00030136,2]
[313123923,1706776250195,-500.0,0.00030136,2]
[313123924,1706776250205,-565.02,0.00030136,2]
[313123925,1706776250214,-500.0,0.00030136,2]
[313123926,1706776250224,-500.0,0.00030136,2]
[313123927,1706776250234,-500.0,0.00030136,2]
[313123928,1706776250244,-500.0,0.00030136,2]
[313123929,1706776250253,-500.0,0.00030136,2]
[313123930,1706776250263,-628.18165263,0.00030136,2]
[313123931,1706776250272,-257.15117471,0.00030136,2]
[313123932,1706776250281,-500.0,0.00030136,2]
[313123933,1706776250291,-533.83,0.00030136,2]
[313123934,1706776250300,-500.0,0.00030136,2]
[313123935,1706776250310,-1121.98,0.00030136,2]
[313123936,1706776250320,-929.72301399,0.00030136,2]
[313123937,1706776250333,-49.86698601,0.00030136,2]
[313123938,1706776250343,-746.33,0.00030136,2]
[313123939,1706776250353,-500.0,0.00030136,2]
[313123940,1706776250363,-500.0,0.00030136,2]
[313123941,1706776250372,-500.0,0.00030136,2]
[313123942,1706776250382,-943.09,0.00030136,2]
[313123943,1706776250392,-580.6,0.00030136,2]
[313123944,1706776250402,-500.0,0.00030136,2]
[313123945,1706776250412,-683.65,0.00030136,2]
[313123946,1706776250421,-2240.85,0.00030136,2]
[313123947,1706776250431,-500.0,0.00030136,2]
[313123948,1706776250441,-500.0,0.00030136,2]
[313123949,1706776250451,-561.05,0.00030136,2]
[313123950,1706776250461,-500.0,0.00030136,2]
[313123951,1706776250471,-500.0,0.00030136,2]
[313123952,1706776250481,-534.33,0.00030136,2]
[313123953,1706776250491,-223.76764369,0.00030136,2]
[313123954,1706776250503,-276.23235631,0.00030136,2]
[313123955,1706776250515,-500.0,0.00030136,2]
[313123956,1706776250524,-500.0,0.00030136,2]
[313123957,1706776250534,-500.0,0.00030136,2]
[313123958,1706776250545,-703.19,0.00030136,2]
[313123959,1706776250554,-2262.54,0.00030136,2]
[313123960,1706776250564,-500.0,0.00030136,2]
[313123961,1706776250574,-500.0,0.00030136,2]
[313123962,1706776250583,-1389.74,0.00030136,2]
[313123963,1706776250593,-1318.75,0.00030136,2]
[313123964,1706776250602,-536.98,0.00030136,2]
[313123965,1706776250612,-500.0,0.00030136,2]
[313123966,1706776250621,-500.0,0.00030136,2]
[313123967,1706776250630,-500.0,0.00030136,2]
[313123968,1706776250639,-820.4,0.00030136,2]
[313123969,1706776250649,-593.65,0.00030136,2]
[313123970,1706776250658,-508.22798292,0.00030136,2]
[313123971,1706776250668,-500.0,0.00030136,2]
[313123972,1706776250678,-986.81,0.00030136,2]
[313123973,1706776250687,-5884.52845876,0.00030136,2]
[313123974,1706776250699,-495.74209716,0.00030136,2]
[313123975,1706776250714,-6885.17944408,0.00030136,2]
[313123976,1706776250724,-537.56,0.00030136,2]
[313123977,1706776250733,-500.0,0.00030136,2]
[313123978,1706776250743,-697.24,0.00030136,2]
[313123979,1706776250752,-500.0,0.00030136,2]
[313123980,1706776250762,-500.0,0.00030136,2]
[313123981,1706776250772,-558.76,0.00030136,2]
[313123982,1706776250782,-78.19274451,0.00030136,2]
[313123983,1706776250817,-421.80725549,0.00030136,2]
[313123984,1706776250826,-500.0,0.00030136,2]
[313123985,1706776250835,-1029.82,0.00030136,2]
[313123986,1706776250845,-1001.26243602,0.00030136,5]
[313124001,1706777431576,-332.35585039,0.0002414,2]